bitfinex-derivatives/quotes_BTCF0:USTF0_20250903
["timestamp","ask_amount","ask_price","bid_price","bid_amount"]
[1756910824470,1.5809804,112430.0,112420.0,0.3608]
[1756910824773,0.66497887,112430.0,112420.0,0.39934]
[1756910824973,1.55917887,112430.0,112420.0,0.39934]
[1756910825174,1.55917887,112430.0,112420.0,0.37447]
[1756910825568,1.55917887,112430.0,112420.0,0.39934]
[1756910826365,1.80917887,112430.0,112420.0,0.3608]
[1756910826569,1.80917887,112430.0,112410.0,0.0001]
[1756910826570,2.19170831,112430.0,112410.0,0.0001]
[1756910826766,0.95286835,112420.0,112410.0,0.0001]
[1756910826976,0.97459779,112420.0,112400.0,0.0001]
[1756910827273,1.84706835,112410.0,112400.0,0.0001]
[1756910827476,1.27672944,112410.0,112400.0,0.01367]
[1756910827780,1.50803779,112410.0,112400.0,0.03854]
[1756910828572,1.86883779,112410.0,112400.0,0.03854]
[1756910828772,1.50703779,112410.0,112400.0,0.03854]
[1756910828973,1.50703779,112410.0,112400.0,0.39934]
[1756910829178,0.59216835,112420.0,112410.0,0.0386]
[1756910829377,1.48630835,112420.0,112410.0,0.3994]
[1756910830981,0.89424,112420.0,112410.0,0.3994]
[1756910831382,1.48630835,112420.0,112410.0,0.3994]
[1756910831682,1.48830835,112420.0,112410.0,0.3994]
[1756910833070,0.59406835,112420.0,112410.0,0.3994]
[1756910833275,1.48830835,112420.0,112410.0,0.3994]
[1756910834183,0.89624,112420.0,112410.0,0.3994]
[1756910834384,0.59406835,112420.0,112410.0,0.3994]
[1756910834676,1.48830835,112420.0,112410.0,0.3994]
[1756910835584,0.002,112420.0,112410.0,0.6494]
[1756910837182,0.001,112420.0,112410.0,0.6494]
[1756910837779,0.07001052,112430.0,112410.0,0.6494]
[1756910837977,0.0001,112430.0,112420.0,0.3994]
[1756910838179,0.0001,112440.0,112430.0,0.0386]
[1756910838386,1.45938835,112450.0,112440.0,0.0386]
[1756910838683,1.48622835,112450.0,112440.0,0.3994]
[1756910839583,1.48618835,112450.0,112440.0,0.3994]
[1756910840182,1.55716037,112450.0,112440.0,0.3994]
[1756910840688,1.57899229,112450.0,112440.0,0.3994]
[1756910840878,1.58099229,112450.0,112440.0,0.3608]
[1756910841185,1.83099229,112450.0,112430.0,0.37476]
[1756910841386,0.59206835,112440.0,112430.0,0.37476]
[1756910841585,0.59206835,112440.0,112430.0,0.37466]
[1756910841586,0.61390027,112440.0,112430.0,0.37466]
[1756910841783,0.61390027,112440.0,112420.0,0.37476]
[1756910842084,1.48606835,112430.0,112420.0,0.37476]
[1756910842282,1.50790027,112430.0,112420.0,0.37466]
[1756910843086,1.50890027,112430.0,112420.0,0.37466]
[1756910843386,0.61490027,112430.0,112420.0,0.3994]
[1756910843587,1.50882027,112430.0,112420.0,0.3994]
[1756910843788,1.50982027,112430.0,112420.0,0.3994]
[1756910844289,1.76082027,112430.0,112410.0,0.37476]
[1756910844477,0.59206835,112420.0,112410.0,0.37476]
[1756910844679,0.61390027,112420.0,112410.0,0.37466]
[1756910844981,0.61390027,112420.0,112410.0,0.01386]
[1756910845176,0.61390027,112420.0,112410.0,0.37466]
[1756910845778,0.61390027,112420.0,112410.0,0.3994]
[1756910845779,0.61490027,112420.0,112410.0,0.3994]
[1756910846287,0.61590027,112420.0,112410.0,0.3994]
[1756910847874,0.61590027,112420.0,112410.0,0.37466]
[1756910848787,0.61590027,112420.0,112410.0,0.3994]
[1756910849782,1.50966027,112420.0,112410.0,0.3994]
[1756910850384,0.91759192,112420.0,112410.0,0.3994]
[1756910850582,0.02383192,112420.0,112410.0,0.6494]
[1756910851185,0.002,112420.0,112410.0,0.6494]
[1756910851784,0.001,112420.0,112410.0,0.6494]
[1756910852586,0.0001,112430.0,112420.0,0.01386]
[1756910852779,1.48584835,112440.0,112430.0,0.0386]
[1756910852985,1.50760931,112440.0,112430.0,0.3994]
[1756910853187,1.50760931,112440.0,112430.0,0.0386]
[1756910853484,1.50760931,112440.0,112420.0,0.37476]
[1756910853485,1.75760931,112440.0,112420.0,0.37476]
[1756910853790,0.95286835,112430.0,112420.0,0.0001]
[1756910853985,0.97572931,112430.0,112410.0,0.01396]
[1756910854186,1.48566835,112420.0,112410.0,0.01396]
[1756910854492,0.61392931,112420.0,112410.0,0.3994]
[1756910854690,1.50752931,112420.0,112410.0,0.3994]
[1756910855188,0.02186096,112420.0,112410.0,0.6494]
[1756910855385,1.48572835,112430.0,112420.0,0.0386]
[1756910855581,1.50749036,112430.0,112420.0,0.37466]
[1756910856690,0.61593036,112430.0,112420.0,0.3994]
[1756910856890,1.50941036,112430.0,112420.0,0.3994]
[1756910857293,1.75941036,112430.0,112420.0,0.3608]
[1756910857493,1.75941036,112430.0,112410.0,0.01396]
[1756910857688,0.59206835,112420.0,112410.0,0.01396]
[1756910857889,0.61393036,112420.0,112410.0,0.0386]
[1756910858281,0.61393036,112420.0,112410.0,0.3994]
[1756910859493,0.61493036,112420.0,112410.0,0.3994]
[1756910859890,0.96131222,112420.0,112400.0,0.3609]
[1756910860090,1.48542835,112410.0,112400.0,0.0001]
[1756910860299,1.75729036,112410.0,112390.0,0.39827]
[1756910860595,0.59206835,112400.0,112390.0,0.37476]
[1756910860894,0.61428563,112400.0,112390.0,0.37466]
[1756910861498,0.66351113,112400.0,112390.0,0.37566]
[1756910861996,0.68572398,112400.0,112390.0,0.37566]
[1756910862298,0.66351113,112400.0,112390.0,0.37566]
[1756910862497,0.66351113,112400.0,112390.0,0.37666]
[1756910863197,0.89346,112410.0,112390.0,0.37666]
[1756910863502,0.66351113,112400.0,112390.0,0.37676]
[1756910863690,0.66351113,112400.0,112390.0,0.37666]
[1756910863890,0.66351113,112400.0,112390.0,0.40017]
[1756910864195,0.66351113,112400.0,112390.0,0.37666]
[1756910864402,0.66351113,112400.0,112390.0,0.40017]
[1756910864592,0.6857125,112400.0,112390.0,0.40017]
[1756910866098,0.0001,112410.0,112390.0,0.65017]
[1756910866394,0.66351113,112430.0,112420.0,0.01439]
[1756910866595,0.66351113,112430.0,112420.0,0.3987]
[1756910866795,0.33848,112440.0,112430.0,0.0379]
[1756910866997,1.02418519,112440.0,112430.0,0.3987]
[1756910867600,0.36067406,112440.0,112430.0,0.3987]
[1756910867801,1.02418519,112440.0,112430.0,0.3987]
[1756910867994,1.02418519,112440.0,112430.0,0.40758356]
[1756910868196,1.02618519,112440.0,112430.0,0.40758356]
[1756910868701,1.03018519,112440.0,112430.0,0.40758356]
[1756910869000,0.02819406,112440.0,112430.0,0.40758356]
[1756910869194,0.66951113,112440.0,112430.0,0.40758356]
[1756910869688,0.66751113,112440.0,112430.0,0.40758356]
[1756910869894,0.66651113,112440.0,112430.0,0.40758356]
[1756910871690,0.91651113,112440.0,112430.0,0.37519]
[1756910872103,0.93871459,112440.0,112420.0,0.01439]
[1756910872402,0.93871459,112440.0,112410.0,0.01439]
[1756910872403,1.91715113,112430.0,112410.0,0.01439]
[1756910872599,1.02431113,112420.0,112400.0,0.396053]
[1756910872797,1.55631113,112410.0,112400.0,0.419563]
[1756910873005,1.55631113,112410.0,112400.0,0.42848953]
[1756910873196,0.3608,112430.0,112410.0,0.0379]
[1756910873501,1.55631113,112420.0,112410.0,0.01439]
[1756910873696,1.5785199,112420.0,112410.0,0.01439]
[1756910874002,1.8285199,112420.0,112400.0,0.396053]
[1756910874204,0.66351113,112410.0,112400.0,0.420563]
[1756910874506,0.66351113,112410.0,112400.0,0.397053]
[1756910874889,0.68571916,112410.0,112400.0,0.420563]
[1756910875089,1.57843916,112410.0,112400.0,0.420563]
[1756910875496,1.55623113,112410.0,112400.0,0.420563]
[1756910875796,1.55623113,112410.0,112400.0,0.42929784]
[1756910875991,1.55623113,112410.0,112400.0,0.397053]
[1756910876194,1.57843819,112410.0,112400.0,0.397053]
[1756910876392,1.57843819,112410.0,112400.0,0.396053]
[1756910876597,1.57843819,112410.0,112400.0,0.381663]
[1756910877097,0.68571819,112410.0,112400.0,0.396053]
[1756910877303,1.57835819,112410.0,112400.0,0.396053]
[1756910877498,2.95592818,112410.0,112380.0,0.37529]
[1756910877704,0.66351113,112390.0,112380.0,0.37519]
[1756910877904,1.55611113,112390.0,112380.0,0.37519]
[1756910878204,1.8284246,112390.0,112380.0,0.37519]
[1756910878703,1.8284246,112390.0,112380.0,0.37719]
[1756910878901,0.9358246,112390.0,112380.0,0.37719]
[1756910879101,1.8284246,112390.0,112380.0,0.37519]
[1756910879304,1.5784246,112390.0,112380.0,0.37719]
[1756910879691,1.5784246,112390.0,112380.0,0.3648]
[1756910880096,1.65100016,112390.0,112380.0,0.3648]
[1756910880293,1.90100016,112390.0,112380.0,0.3648]
[1756910880503,1.90100016,112390.0,112380.0,0.3628]
[1756910880703,1.00840016,112390.0,112380.0,0.3648]
[1756910880900,1.90096016,112390.0,112380.0,0.3648]
[1756910881105,1.00840016,112390.0,112380.0,0.3648]
[1756910881305,1.90096016,112390.0,112380.0,0.3648]
[1756910881704,1.90096016,112390.0,112380.0,0.004]
[1756910881906,2.26176016,112390.0,112380.0,0.004]
[1756910883005,2.27049599,112390.0,112380.0,0.004]
[1756910883200,2.26172016,112390.0,112380.0,0.004]
[1756910884099,1.36920016,112390.0,112380.0,0.004]
[1756910884299,2.26168016,112390.0,112380.0,0.01839]
[1756910884800,2.26168016,112390.0,112380.0,0.004]
[1756910886701,2.26168016,112390.0,112370.0,0.01449]
[1756910887008,0.66351113,112380.0,112370.0,0.01449]
[1756910887306,1.0466246,112380.0,112360.0,0.37529]
[1756910887605,1.0466246,112380.0,112360.0,0.038]
[1756910887606,1.55595113,112370.0,112360.0,0.038]
[1756910887801,1.5782646,112370.0,112360.0,0.0379]
[1756910888003,2.59957573,112370.0,112350.0,0.01449]
[1756910888210,1.68782226,112360.0,112350.0,0.01449]
[1756910888499,1.70813573,112360.0,112340.0,0.01449]
[1756910888706,2.21942226,112350.0,112340.0,0.038]
[1756910888899,2.23773573,112350.0,112340.0,0.0379]
[1756910889906,2.23773573,112350.0,112340.0,0.6487]
[1756910889907,1.55587113,112350.0,112340.0,0.6487]
[1756910890300,0.66351113,112350.0,112340.0,0.6487]
[1756910890499,1.55591113,112350.0,112340.0,0.6487]
[1756910890702,1.55691113,112350.0,112340.0,0.6487]
[1756910890901,0.66451113,112350.0,112340.0,0.6487]
[1756910891409,1.55987113,112350.0,112340.0,0.6487]
[1756910892202,0.004,112350.0,112340.0,0.6487]
[1756910892401,0.97483113,112350.0,112340.0,0.6487]
[1756910893204,0.66751113,112350.0,112340.0,0.6487]
[1756910893400,0.89628,112350.0,112340.0,0.6487]
[1756910893708,1.55979113,112350.0,112340.0,0.6487]
[1756910894401,2.22330226,112350.0,112340.0,0.3987]
[1756910894802,2.22330226,112350.0,112340.0,0.37519]
[1756910895002,2.22330226,112350.0,112340.0,0.01439]
[1756910895207,2.47330226,112350.0,112340.0,0.01439]
[1756910895506,2.47330226,112350.0,112330.0,0.37529]
[1756910895704,0.66351113,112340.0,112330.0,0.37529]
[1756910895908,0.66351113,112340.0,112330.0,0.39942]
[1756910896301,1.55567113,112340.0,112330.0,0.39942]
[1756910897202,1.55567113,112340.0,112330.0,0.37519]
[1756910897803,1.80567113,112340.0,112320.0,0.3696802]
[1756910898006,0.66351113,112330.0,112320.0,0.0001]
[1756910898204,0.66351113,112330.0,112320.0,0.37547]
[1756910898404,0.89222,112340.0,112330.0,0.01467]
[1756910898598,1.55663113,112340.0,112330.0,0.3997]
[1756910899409,0.001,112340.0,112330.0,0.6497]
[1756910899708,0.89308,112340.0,112330.0,0.6497]
[1756910899908,1.56059113,112340.0,112330.0,0.6497]
[1756910900409,1.56059113,112340.0,112330.0,0.3997]
[1756910900713,1.55859113,112340.0,112330.0,0.6497]
[1756910901304,1.55859113,112340.0,112330.0,0.3997]
[1756910901305,1.55959113,112340.0,112330.0,0.3997]
[1756910902213,1.55759113,112340.0,112330.0,0.3997]
[1756910902404,0.91624182,112340.0,112330.0,0.3997]
[1756910902599,1.57975295,112340.0,112330.0,0.3997]
[1756910904409,1.57967295,112340.0,112330.0,0.6497]
[1756910904707,0.002,112340.0,112330.0,0.6497]
[1756910906507,0.002,112340.0,112330.0,1.40221743]
[1756910906808,0.002,112340.0,112330.0,0.7387063]
[1756910907305,0.002,112340.0,112330.0,0.6497]
[1756910907510,0.002,112340.0,112330.0,0.7387057]
[1756910907715,0.002,112340.0,112330.0,1.40221683]
[1756910907915,0.002,112340.0,112330.0,1.31321113]
[1756910908216,0.002,112340.0,112330.0,0.6897]
[1756910908414,0.002,112340.0,112330.0,1.68221613]
[1756910909218,0.0001,112350.0,112340.0,0.0389]
[1756910909413,0.0001,112360.0,112350.0,0.01467]
[1756910909606,0.68593144,112370.0,112350.0,0.3997]
[1756910909911,0.02242031,112370.0,112360.0,0.3997]
[1756910910117,0.02232031,112370.0,112360.0,0.3997]
[1756910911522,0.02232031,112370.0,112360.0,0.6497]
[1756910911720,0.02832031,112370.0,112360.0,0.6497]
[1756910911914,0.03232031,112370.0,112360.0,0.6497]
[1756910912420,0.02832031,112370.0,112360.0,0.6497]
[1756910912918,0.02532031,112370.0,112360.0,0.6497]
[1756910913125,0.003,112370.0,112360.0,0.6497]
[1756910915815,0.66651113,112370.0,112360.0,0.3997]
[1756910916030,0.91651113,112370.0,112360.0,0.3997]
[1756910916217,0.93881036,112370.0,112360.0,0.3997]
[1756910917118,0.93881036,112370.0,112360.0,0.37547]
[1756910917321,0.93881036,112370.0,112360.0,0.3608]
[1756910917625,0.02529923,112370.0,112360.0,0.3997]
[1756910917921,0.66651113,112370.0,112360.0,0.3997]
[1756910918123,0.02529751,112370.0,112360.0,0.3997]
[1756910918321,0.68880864,112370.0,112360.0,0.3997]
[1756910919118,0.66651113,112370.0,112360.0,0.3997]
[1756910919314,0.003,112370.0,112360.0,0.6497]
[1756910920834,0.003,112370.0,112360.0,0.3997]
[1756910921034,0.002,112370.0,112360.0,0.3997]
[1756910921423,0.002,112370.0,112360.0,0.6497]
[1756910921831,0.003,112370.0,112360.0,0.6497]
[1756910922427,0.002,112370.0,112360.0,0.6497]
[1756910922636,0.001,112370.0,112360.0,0.6497]
[1756910923036,0.001,112370.0,112360.0,1.6296419]
[1756910923936,0.001,112370.0,112360.0,1.54066]
[1756910924329,0.001,112370.0,112360.0,1.54166]
[1756910924536,0.0001,112380.0,112360.0,1.54166]
[1756910924537,0.0001,112380.0,112370.0,0.03919]
[1756910924837,0.59320876,112390.0,112380.0,0.03919]
[1756910925031,2.77162,112400.0,112380.0,0.39999]
[1756910925236,2.79385223,112400.0,112390.0,0.39999]
[1756910925437,3.38686099,112400.0,112390.0,0.39999]
[1756910925730,2.77148,112400.0,112390.0,0.39999]
[1756910926039,3.63686099,112400.0,112390.0,0.3608]
[1756910926242,3.63886099,112400.0,112390.0,0.3608]
[1756910926430,3.38886099,112400.0,112390.0,0.37551]
[1756910926828,2.49806099,112400.0,112390.0,0.37551]
[1756910927031,3.38878099,112400.0,112390.0,0.39999]
[1756910927539,2.49806099,112400.0,112390.0,0.39999]
[1756910928034,2.50106099,112400.0,112390.0,0.39999]
[1756910928242,3.39170099,112400.0,112390.0,0.39999]
[1756910928535,2.75106099,112400.0,112390.0,0.39999]
[1756910928737,3.64166099,112400.0,112390.0,0.39999]
[1756910931039,3.64166099,112400.0,112390.0,0.3608]
[1756910931544,3.64166099,112400.0,112380.0,0.37561]
[1756910931845,3.64166099,112400.0,112380.0,0.01481]
[1756910931846,0.59310876,112390.0,112380.0,0.01481]
[1756910932139,0.61538099,112390.0,112370.0,0.37561]
[1756910932337,0.59310876,112380.0,112370.0,0.40879014]
[1756910932537,0.59310876,112380.0,112370.0,0.40869014]
[1756910932736,1.48350876,112380.0,112370.0,0.40869014]
[1756910933539,0.59310876,112380.0,112370.0,0.40869014]
[1756910933740,1.48346876,112380.0,112370.0,0.40869014]
[1756910934133,1.50580123,112380.0,112370.0,0.40869014]
[1756910934933,1.50680123,112380.0,112370.0,0.40869014]
[1756910935529,0.02333247,112380.0,112370.0,0.40869014]
[1756910935734,0.61644123,112380.0,112370.0,0.40869014]
[1756910935936,1.50664123,112380.0,112370.0,0.40869014]
[1756910937344,0.91353247,112380.0,112370.0,0.40869014]
[1756910937541,0.001,112380.0,112370.0,0.67956871]
[1756910939342,0.001,112380.0,112370.0,0.42956871]
[1756910941047,0.001,112380.0,112370.0,0.67956871]
[1756910941242,0.001,112380.0,112370.0,0.76854251]
[1756910941550,0.001,112380.0,112370.0,1.36165127]
[1756910942343,0.01004,112410.0,112380.0,0.1281559]
[1756910942547,0.01004,112410.0,112400.0,0.8497401]
[1756910942746,0.01004,112410.0,112400.0,0.87018557]
[1756910943152,0.01004,112410.0,112400.0,0.78123547]
[1756910944445,0.01004,112410.0,112400.0,1.12018557]
[1756910944649,0.01004,112410.0,112400.0,1.12118557]
[1756910944854,0.01004,112410.0,112400.0,1.71429433]
[1756910945154,0.01004,112410.0,112400.0,1.71529433]
[1756910945554,0.01004,112410.0,112400.0,1.72429433]
[1756910945755,0.01004,112410.0,112400.0,2.61385433]
[1756910946457,0.01004,112410.0,112400.0,2.61285433]
[1756910946655,0.01104,112410.0,112400.0,2.61285433]
[1756910946842,0.01104,112410.0,112400.0,2.01974557]
[1756910947048,0.01104,112410.0,112400.0,1.93071547]
[1756910947247,0.01104,112410.0,112400.0,2.01966537]
[1756910947547,0.01004,112410.0,112400.0,2.01966537]
[1756910947751,0.01004,112410.0,112400.0,2.02066537]
[1756910948155,0.01004,112410.0,112400.0,2.61377413]
[1756910948651,0.01004,112410.0,112400.0,1.63534423]
[1756910948852,0.01004,112410.0,112400.0,1.93155547]
[1756910949156,0.01004,112410.0,112400.0,1.04223547]
[1756910949452,0.01104,112410.0,112400.0,2.01950537]
[1756910950455,0.59310876,112440.0,112430.0,0.01425]
[1756910950645,0.07107202,112450.0,112430.0,0.75874]
[1756910950846,0.09329863,112450.0,112440.0,0.39794]
[1756910951042,0.09319863,112450.0,112440.0,0.39794]
[1756910951457,0.09319863,112450.0,112440.0,0.37505]
[1756910951954,0.68630739,112450.0,112440.0,0.37505]
[1756910952151,0.69030739,112450.0,112440.0,0.37505]
[1756910952457,0.94030739,112450.0,112440.0,0.3608]
[1756910953357,0.34719863,112450.0,112440.0,0.37505]
[1756910953658,0.94030739,112450.0,112440.0,0.3608]
[1756910953855,0.93630739,112450.0,112440.0,0.3608]
[1756910954157,1.83222739,112450.0,112440.0,0.39794]
[1756910954352,1.83222739,112450.0,112440.0,0.37505]
[1756910955159,1.83218739,112450.0,112440.0,0.3608]
[1756910955358,2.19298739,112450.0,112430.0,0.3608]
[1756910955563,0.59310876,112440.0,112420.0,0.37505]
[1756910955753,1.48190876,112430.0,112420.0,0.37505]
[1756910955948,1.50413537,112430.0,112420.0,0.39794]
[1756910956149,1.75413537,112430.0,112420.0,0.37505]
[1756910956461,1.75413537,112430.0,112420.0,0.38410474]
[1756910956650,1.75413537,112430.0,112420.0,0.37505]
[1756910957254,1.75513537,112430.0,112420.0,0.37505]
[1756910957453,1.75713537,112430.0,112420.0,0.3608]
[1756910957952,1.75701537,112430.0,112420.0,0.37505]
[1756910958161,1.75701537,112430.0,112420.0,0.3608]
[1756910958347,1.75701537,112430.0,112420.0,0.39794]
[1756910958555,0.61633537,112430.0,112420.0,0.39794]
[1756910958854,1.50797537,112430.0,112420.0,0.39794]
[1756910959060,1.50697537,112430.0,112420.0,0.39794]
[1756910959258,0.91586661,112430.0,112420.0,0.39794]
[1756910959458,0.62033537,112430.0,112420.0,0.39794]
[1756910960059,1.50893537,112430.0,112420.0,0.39794]
[1756910960254,0.91582661,112430.0,112420.0,0.39794]
[1756910960662,1.50893537,112430.0,112420.0,0.39794]
[1756910961056,0.91582661,112430.0,112420.0,0.39794]
[1756910961272,1.50893537,112430.0,112420.0,0.39794]
[1756910961464,1.51093537,112430.0,112420.0,0.39794]
[1756910961856,1.51089537,112430.0,112420.0,0.39794]
[1756910962866,1.51077537,112430.0,112420.0,0.37505]
[1756910963358,0.61733537,112430.0,112420.0,0.39794]
[1756910963664,1.50877537,112430.0,112420.0,0.39794]
[1756910963857,0.62033537,112430.0,112420.0,0.39794]
[1756910964057,0.91558661,112430.0,112420.0,0.39794]
[1756910964257,0.62033537,112430.0,112420.0,0.39794]
[1756910964461,0.91558661,112430.0,112420.0,0.39794]
[1756910964963,0.02722661,112430.0,112420.0,0.39794]
[1756910965163,0.005,112430.0,112420.0,0.39794]
[1756910965368,0.02725628,112430.0,112420.0,0.39794]
[1756910965671,0.005,112430.0,112420.0,0.39794]
[1756910965855,0.02725613,112430.0,112420.0,0.39794]
[1756910966056,0.003,112430.0,112420.0,0.39794]
[1756910966265,0.61937366,112430.0,112420.0,0.39794]
[1756910966662,0.61837366,112430.0,112420.0,0.39794]
[1756910967268,0.62037366,112430.0,112420.0,0.39794]
[1756910967870,0.61937366,112430.0,112420.0,0.39794]
[1756910968363,0.0242649,112430.0,112420.0,0.39794]
[1756910968564,0.61937366,112430.0,112420.0,0.39794]
[1756910968771,0.61737366,112430.0,112420.0,0.39794]
[1756910968967,0.61837366,112430.0,112420.0,0.39794]
[1756910969676,0.61837366,112430.0,112420.0,0.37505]
[1756910970178,0.61637366,112430.0,112420.0,0.3608]
[1756910970369,0.86737366,112430.0,112420.0,0.3608]
[1756910970570,0.86937366,112430.0,112420.0,0.3608]
[1756910970872,0.87037366,112430.0,112420.0,0.3608]
[1756910971074,1.27896231,112430.0,112410.0,0.0001]
[1756910971271,1.52904617,112420.0,112410.0,0.0001]
[1756910971474,2.16211107,112420.0,112400.0,0.02054547]
[1756910971773,0.64104617,112410.0,112400.0,0.0001]
[1756910971975,0.91331107,112410.0,112390.0,0.37515]
[1756910972184,1.48106876,112400.0,112390.0,0.37515]
[1756910972468,0.61537366,112400.0,112390.0,0.37505]
[1756910972670,1.50333366,112400.0,112390.0,0.39794]
[1756910972870,0.61537366,112400.0,112390.0,0.39794]
[1756910973074,1.50333366,112400.0,112390.0,0.39794]
[1756910974369,1.50333366,112400.0,112390.0,0.37505]
[1756910974564,1.50433366,112400.0,112390.0,0.37505]
[1756910975578,1.50533366,112400.0,112390.0,0.37505]
[1756910975968,1.75533366,112400.0,112390.0,0.37505]
[1756910976471,0.61737366,112400.0,112390.0,0.39794]
[1756910976775,1.50529366,112400.0,112390.0,0.39794]
[1756910976977,0.0242649,112400.0,112390.0,0.39794]
[1756910977171,1.08709366,112400.0,112390.0,0.39794]
[1756910977369,0.002,112400.0,112390.0,0.39794]
[1756910977569,0.88988,112400.0,112390.0,0.39794]
[1756910977972,1.48298876,112400.0,112390.0,0.64794]
[1756910978271,0.002,112400.0,112390.0,0.64794]
[1756910978978,0.002,112400.0,112390.0,0.39794]
[1756910979580,0.001,112400.0,112390.0,0.39794]
[1756910979778,0.59320876,112410.0,112400.0,0.0372]
[1756910979970,0.59310876,112410.0,112400.0,0.398]
[1756910980270,1.48090876,112410.0,112400.0,0.398]
[1756910980674,1.50319679,112410.0,112400.0,0.398]
[1756910981281,1.48090876,112410.0,112400.0,0.398]
[1756910981479,1.7552,112410.0,112400.0,0.37502]
[1756910981777,1.7552,112410.0,112390.0,0.39813]
[1756910981969,0.59310876,112400.0,112390.0,0.39813]
[1756910982171,0.59310876,112400.0,112390.0,0.39803]
[1756910982369,0.61540166,112400.0,112390.0,0.39803]
[1756910983376,1.48792876,112410.0,112400.0,0.01422]
[1756910983678,1.58034762,112410.0,112400.0,0.398]
[1756910983975,1.57534762,112410.0,112400.0,0.398]
[1756910984380,1.57534762,112410.0,112400.0,0.37502]
[1756910984676,1.58034762,112410.0,112400.0,0.37502]
[1756910985075,1.57834762,112410.0,112400.0,0.37502]
[1756910985273,1.82834762,112410.0,112400.0,0.37502]
[1756910985971,1.83134762,112410.0,112400.0,0.37502]
[1756910986476,1.83134762,112410.0,112390.0,0.0001]
[1756910986477,2.85548061,112410.0,112390.0,0.0001]
[1756910986676,1.32666598,112400.0,112390.0,0.00454]
[1756910986882,1.34896061,112400.0,112390.0,0.01866]
[1756910987681,0.68562762,112400.0,112390.0,0.01866]
[1756910987882,0.88562762,112400.0,112390.0,0.01866]
[1756910988082,0.88562762,112400.0,112390.0,0.04164]
[1756910988878,0.88762762,112400.0,112390.0,0.01866]
[1756910989285,0.89062762,112400.0,112390.0,0.01866]
[1756910989482,1.55396061,112400.0,112390.0,0.01866]
[1756910989980,1.55396061,112400.0,112390.0,0.00444]
[1756910990184,1.80396061,112400.0,112390.0,0.00444]
[1756910990680,1.77806762,112400.0,112390.0,0.40244]
[1756910990885,0.89062762,112400.0,112390.0,0.40244]
[1756910991186,0.205,112400.0,112390.0,0.65244]
[1756910991380,0.205,112400.0,112390.0,0.7413996]
[1756910992173,0.205,112400.0,112390.0,0.65244]
[1756910992377,0.204,112400.0,112390.0,0.65244]
[1756910992881,0.203,112400.0,112390.0,0.65244]
[1756910993379,0.202,112400.0,112390.0,0.40244]
[1756910993584,0.86533299,112400.0,112390.0,0.40244]
[1756910994582,0.202,112400.0,112390.0,0.40244]
[1756910994980,0.202,112400.0,112390.0,0.4914045]
[1756910995181,0.202,112400.0,112390.0,0.7414045]
[1756910995683,0.002,112400.0,112390.0,0.5786045]
[1756910997485,0.002,112400.0,112390.0,0.48964]
[1756910997882,0.002,112400.0,112390.0,1.37684]
[1756910998082,0.002,112400.0,112390.0,0.48964]
[1756910998794,0.002,112400.0,112390.0,0.5786045]
[1756910999390,0.002,112400.0,112390.0,0.3286045]
[1756910999789,0.0001,112410.0,112400.0,0.1261516]
[1756910999991,0.0001,112420.0,112410.0,0.0372]
[1756911000187,0.68748299,112430.0,112420.0,0.0372]
[1756911000390,0.70972636,112430.0,112420.0,0.398]
[1756911001795,0.71272636,112430.0,112420.0,0.398]
[1756911002286,0.71472636,112430.0,112420.0,0.398]
[1756911003595,0.97821636,112430.0,112420.0,0.398]
[1756911003797,0.97821636,112430.0,112420.0,0.3608]
[1756911004493,0.31488337,112430.0,112420.0,0.38378]
[1756911004692,0.96472636,112430.0,112420.0,0.398]
[1756911005795,0.31488337,112430.0,112420.0,0.38378]
[1756911005998,0.97821636,112430.0,112420.0,0.38378]
[1756911006897,0.97821636,112430.0,112420.0,0.398]
[1756911007090,0.97821636,112430.0,112420.0,0.38378]
[1756911007795,0.97821636,112430.0,112420.0,0.398]
[1756911008193,0.71472636,112430.0,112420.0,0.398]
[1756911008398,1.57890299,112430.0,112420.0,0.398]
[1756911008996,0.91557,112430.0,112420.0,0.398]
[1756911009296,0.91557,112430.0,112420.0,0.38378]
[1756911009297,1.57890299,112430.0,112420.0,0.38378]
[1756911009592,1.57890299,112430.0,112420.0,0.3987]
[1756911010199,0.91557,112430.0,112420.0,0.3987]
[1756911010499,1.57690299,112430.0,112420.0,0.3987]
[1756911011302,1.57890299,112430.0,112420.0,0.3987]
[1756911011494,0.91557,112430.0,112420.0,0.3987]
[1756911011690,1.57890299,112430.0,112420.0,0.3987]
[1756911012092,1.57866299,112430.0,112420.0,0.3987]
[1756911012894,1.60098459,112430.0,112410.0,0.37512]
[1756911013096,0.68740299,112420.0,112410.0,0.39832]
[1756911013301,0.69889299,112420.0,112410.0,0.39822]
[1756911013489,0.68740299,112420.0,112410.0,0.3608]
[1756911013693,0.70972489,112420.0,112410.0,0.39892]
[1756911014298,0.71172489,112420.0,112410.0,0.39892]
[1756911014699,0.71272489,112420.0,112410.0,0.39892]
[1756911015201,0.69040299,112420.0,112410.0,0.3608]
[1756911015700,0.69040299,112420.0,112410.0,0.384]
[1756911016098,0.69040299,112420.0,112410.0,0.39892]
[1756911016099,0.02707,112420.0,112410.0,0.39892]
[1756911016306,0.91311,112420.0,112410.0,0.39892]
[1756911016503,1.57644299,112420.0,112410.0,0.39892]
[1756911016701,0.69040299,112420.0,112410.0,0.39892]
[1756911016896,0.02707,112420.0,112410.0,0.39892]
[1756911017203,0.003,112420.0,112410.0,0.39892]
[1756911017503,0.003,112420.0,112410.0,0.64892]
[1756911020301,0.003,112420.0,112410.0,0.7378689]
[1756911020302,0.002,112420.0,112410.0,0.7378689]
[1756911020507,0.002,112420.0,112410.0,0.64892]
[1756911020701,0.002,112420.0,112410.0,0.39892]
[1756911020702,0.68740299,112420.0,112410.0,0.39892]
[1756911020897,0.95089299,112420.0,112410.0,0.384]
[1756911021102,1.85897903,112420.0,112410.0,0.3608]
[1756911022404,1.85897903,112420.0,112410.0,0.384]
[1756911022807,1.85997903,112420.0,112410.0,0.3608]
[1756911023010,1.60997903,112420.0,112410.0,0.3608]
[1756911023410,1.61197903,112420.0,112410.0,0.3608]